Cogmind - Beta 14 @@@ ROGUE MODE // 2024.12.30 @ 16:39:26 Player: sercli123 Result: Destroyed by G-34 Mercenary with Small Laser Performance ------------- Evolutions (1) 500 Regions Visited (3) 600 Robots Destroyed (22) 110 Value Destroyed (421) 421 Prototype IDs (3) 60 Alien Tech Used (0) 0 Bonus (0) 0 TOTAL SCORE: 1691 Bonus ------- None Cogmind --------- Core Integrity 0/400 Matter 294/300 Energy 99/100 System Corruption 3% Temperature Cool (6) Movement Core (50) Location -9/Materials Parts ------- > --- POWER (1) -------- (None) > --- PROPULSION (4) --- (None) > --- UTILITY (2) ------ (None) > --- WEAPON (2) ------- (None) > --- INVENTORY (5) ---- Ion Engine Small Battery (100) Medium Matter Pod (100) Targeting Computer Peak State ------------ > --- POWER ------------ Ion Engine > --- PROPULSION ------- Light Treads Wheel > --- UTILITY ---------- Small Storage Unit Authchip [Propulsion] > --- WEAPON ----------- EM Pulse Gun Light Cannon > --- INVENTORY -------- Ion Engine Medium Matter Pod Targeting Computer Core Shielding Core Shielding Authchip [Storage] Medium Laser Assault Rifle [Rating: 11] Favorites ----------- Power Ion Engine Engine Ion Engine Propulsion Light Treads Treads Light Treads Leg Aluminum Leg Wheel Wheel Flight Unit Flight Unit Utility Small Storage Unit Storage Small Storage Unit Processor Signal Interpreter Hackware Authchip [Propulsion] Weapon Assault Rifle Energy Gun EM Pulse Gun Ballistic Gun Assault Rifle Ballistic Cannon Light Cannon Build | -11 -10 -10 -9 ------- Run | Yrd Mat Min Mat Slots Evolved 2 | . . . 2 Power . | . . . . Propulsion 2 | . . . 2 Utility . | . . . . Weapon . | . . . . Parts Attached 19 | 6 5 5 3 Power 4 | 1 . 2 1 Engine 4 | 1 . 2 1 Core . | . . . . Reactor . | . . . . Propulsion 6 | 2 2 1 1 Treads 2 | 1 1 . . Leg 1 | . . 1 . Wheel 1 | 1 . . . Hover . | . . . . Flight 2 | . 1 . 1 Utility 4 | 1 1 1 1 Device . | . . . . Storage 1 | 1 . . . Processor 1 | . . 1 . Hackware 2 | . 1 . 1 Protection . | . . . . Artifact . | . . . . Weapon 5 | 2 2 1 . Energy Gun 2 | 1 . 1 . Energy Cannon . | . . . . Ballistic Gun 2 | 1 1 . . Ballistic Cannon 1 | . 1 . . Launcher . | . . . . Special Weapon . | . . . . Impact Weapon . | . . . . Slashing Weapon . | . . . . Piercing Weapon . | . . . . Special Melee Weapon . | . . . . Unidentified Prototypes . | . . . . Parts Lost 12 | . 1 8 3 Power 2 | . . 2 . Propulsion 4 | . . 3 1 Utility 2 | . . . 2 Weapon 4 | . 1 3 . Highest Loss Streak 3 | . 1 3 2 To Critical Strikes . | . . . . Average Slot Usage (%) 83 | . 92 90 23 Engine 12 | . 14 12 2 Treads 11 | . 13 13 . Leg 1 | . . 4 . Wheel 10 | . 14 8 . Storage 12 | . 14 14 1 Processor 4 | . . 9 10 Hackware 5 | . 6 4 3 Energy Gun 5 | . 9 2 . Ballistic Gun 8 | . 6 13 . Ballistic Cannon 8 | . 11 5 . Peak Build Rating 11 | 6 11 11 7 Average Rating 7 | 2 8 8 3 On Entrance 5 | . 6 11 4 Naked Turns 9 | . . . 9 Heaviest Build 15 | 14 15 15 10 Greatest Support 20 | 10 20 20 4 Greatest Overweight (x) 3 | 1 1 3 3 Average Overweight (x) . | . . . . Largest Inventory Capacity 8 | 8 8 8 8 Average Capacity 7 | 5 8 8 5 Most Carried 8 | 5 8 8 5 Average Carried 5 | 2 6 6 3 Final Capacity 8 | 8 8 8 5 Final Carried 8 | 2 8 5 4 Class Distribution -------------------- 100% | Mutant Dominant Class ---------------- Mutant | -10/Materials Mutant | -10/Mines Mutant | -9/Materials Resources | -11 -10 -10 -9 ----------- Run | Yrd Mat Min Mat Matter Collected 694 | 189 339 166 . Remotely . | . . . . Salvage Created 640 | . 304 336 . Parts 51 | . 29 22 . Haulers Intercepted 1 | . 1 . . Recyclers Shooed 2 | . 1 1 . Parts Field Recycled . | . . . . Retrieved Matter . | . . . . Parts Self-Destructed . | . . . . Prevented . | . . . . Kills | -11 -10 -10 -9 ------- Run | Yrd Mat Min Mat Combat Hostiles Destroyed 15 | . 8 7 . Guns 10 | . 3 7 . Cannons 5 | . 5 . . Classes Destroyed 8 | . 7 1 . Worker 1 | . 1 . . Tunneler 1 | . 1 . . Hauler 1 | . 1 . . Recycler 2 | . . 2 . Operator 1 | . 1 . . Watcher 1 | . 1 . . Swarmer 8 | . 5 3 . Grunt 7 | . 3 4 . Best Kill Streak 4 | . 3 4 . Combat Bots Only 4 | . 3 4 . Max Kills in Single Turn 1 | . 1 1 . Gunslinging . | . . . . Exploded . | . . . . Melee . | . . . . Uniques/NPCs Destroyed . | . . . . Combat | -11 -10 -10 -9 -------- Run | Yrd Mat Min Mat Hostile Shots Fired 170 | . 49 69 52 Missed 41 | . 12 10 19 Damage Taken 1543 | . 357 721 465 Core 585 | . 60 125 400 Absorbed by Shields . | . . . . Core Remaining (%) 63 | 100 . 26 . Volleys Fired 70 | . 34 36 . Largest 2 | . 2 2 . Hottest 75 | . 75 70 . Shots Fired 129 | . 67 62 . Gun 90 | . 35 55 . Cannon 39 | . 32 7 . Launcher . | . . . . Special . | . . . . Kinetic 79 | . 36 43 . Thermal 19 | . . 19 . Explosive . | . . . . Electromagnetic 31 | . 31 . . Robot Hit Streak 9 | . 9 8 . Robot Miss Streak 3 | . 3 3 . Penetration Max . | . . . . Secondary Targets 2 | . . 2 . Max Gunslinging Chain 1 | . . 1 . Shots Hit Robots 78 | . 37 41 . Core Hits 37 | . 17 18 2 Critical Kills . | . . . . Critical Parts Destroyed . | . . . . Critical Strikes 3 | . 2 1 . Burn 1 | . . 1 . Blast 2 | . 2 . . Melee Attacks . | . . . . Impact . | . . . . Slashing . | . . . . Piercing . | . . . . Sneak Attacks . | . . . . Combat Hostiles . | . . . . Follow-up Attacks . | . . . . Damage Inflicted 1247 | . 632 585 30 Guns 807 | . 309 498 . Cannons 377 | . 290 87 . Explosions 33 | . 33 . . Melee . | . . . . Ramming 30 | . . . 30 Kinetic 756 | . 320 436 . Thermal 182 | . 33 149 . Explosive . | . . . . Electromagnetic 279 | . 279 . . Impact . | . . . . Slashing . | . . . . Piercing . | . . . . Highest Corruption 3 | . 2 2 3 Average Corruption 2 | . 2 2 3 Corruption Purged . | . . . . Corruption Blocked . | . . . . Effects 11 | . 6 5 . Message Errors 1 | . 1 . . Matter Fused 1 | . . 1 . Heat Flow Errors 2 | . . 2 . Energy Discharges 2 | . 2 . . Data Loss (minor) 1 | . 1 . . Data Loss (major) 1 | . . 1 . Misfires 2 | . 1 1 . Weapon Failures 1 | . 1 . . Overload Shots . | . . . . Overflow Damage 7 | . 7 . . Projectiles 7 | . 7 . . Explosions . | . . . . Melee . | . . . . Knockbacks 7 | . 5 2 . Impact . | . . . . Kinetic 7 | . 5 2 . Secondary . | . . . . Self-Inflicted Damage 14 | . . . 14 Shots . | . . . . Rammed 6 | . . . 6 Targets Rammed 6 | . . . 6 Kicked . | . . . . Crushed . | . . . . Highest Temperature 184 | . 161 184 . Average Temperature 56 | . 41 70 . Received Heat Transfer 645 | . 69 378 198 Siege Activations . | . . . . Robots Corrupted . | . . . . Combat Hostiles . | . . . . Parts Fried 1 | . 1 . . Impact Corruptions . | . . . . Robots Melted . | . . . . Combat Hostiles . | . . . . Parts Melted 1 | . . 1 . Heat Transferred 568 | . 50 518 . Parts Sabotaged . | . . . . Parts Stolen . | . . . . Parts Stripped . | . . . . Power Chain Reactions 1 | . 1 . . Alert | -11 -10 -10 -9 ------- Run | Yrd Mat Min Mat Peak Influence 245 | . 245 203 60 Initial 58 | . . 58 . Average 102 | . 122 108 30 Maximum Alert Level 1 | . 1 1 . Low Security (%) 90 | 100 92 83 100 Level 1 9 | . 7 16 . Level 2 . | . . . . Level 3 . | . . . . Level 4 . | . . . . Level 5 . | . . . . High Security . | . . . . Max Security . | . . . . Squads Dispatched 1 | . . . 1 Investigation . | . . . . Extermination . | . . . . Reinforcement 1 | . . . 1 Assault . | . . . . Garrison . | . . . . Intercept . | . . . . Searches Triggered . | . . . . Construction Impeded . | . . . . Haulers Reinforced . | . . . . Active Scanning Responses . | . . . . Cargo Convoy Interrupts . | . . . . Stealth | -11 -10 -10 -9 --------- Run | Yrd Mat Min Mat Distress Signals 1 | . . 1 . Communications Jammed . | . . . . Distress Signals . | . . . . Times Spotted 28 | . 12 9 7 Peak Tracking Total 6 | . 4 3 6 Tactical Retreats 2 | . 1 . 1 Traps | -11 -10 -10 -9 ------- Run | Yrd Mat Min Mat Traps Triggered 1 | . 1 . . Indirectly . | . . . . Trap Hack Attempts . | . . . . Triggered . | . . . . Disarmed . | . . . . Reprogrammed . | . . . . Reused . | . . . . Traps Extracted . | . . . . Installed . | . . . . Triggered . | . . . . Machines | -11 -10 -10 -9 ---------- Run | Yrd Mat Min Mat Machines Disabled 1 | . 1 . . Max in Single Turn 1 | . 1 . . Machines Repaired . | . . . . Machines Dismantled . | . . . . Machines Sabotaged . | . . . . Overloaded Fab Kills . | . . . . Hacking | -11 -10 -10 -9 --------- Run | Yrd Mat Min Mat Machines Accessed 5 | . 5 . . Terminals 5 | . 5 . . Fabricators . | . . . . Repair Stations . | . . . . Recycling Units . | . . . . Scanalyzers . | . . . . Garrison Access . | . . . . Total Hacks 14 | . 14 . . Successful 11 | . 11 . . Failed 3 | . 3 . . Catastrophic . | . . . . Database Lockouts . | . . . . Manual 12 | . 12 . . Terminals 14 | . 14 . . Fabricators . | . . . . Repair Stations . | . . . . Recycling Units . | . . . . Scanalyzers . | . . . . Garrison Access . | . . . . Terminal Hacks 2 | . 2 . . Prototype ID Bank 2 | . 2 . . Fabricator Hacks . | . . . . Repair Station Hacks . | . . . . Recycling Unit Hacks . | . . . . Scanalyzer . | . . . . Garrison Access Hacks . | . . . . Unauthorized Hacks 9 | . 9 . . Terminals 9 | . 9 . . Assimilate 1 | . 1 . . Botnet 4 | . 4 . . Skim 4 | . 4 . . Fabricators . | . . . . Repair Stations . | . . . . Recycling Units . | . . . . Scanalyzers . | . . . . Garrison Access . | . . . . Data Cores Recovered 1 | . 1 . . Used 1 | . 1 . . Hacking Detections 4 | . 4 . . Full Trace Events . | . . . . Feedback Events . | . . . . Feedback Blocked . | . . . . Robot Schematics Acquired . | . . . . Robots Built . | . . . . Authchips . | . . . . Time . | . . . . Total Robot Build Rating . | . . . . Part Schematics Acquired . | . . . . Parts Built . | . . . . Authchips . | . . . . Time . | . . . . Total Part Build Rating . | . . . . Parts Repaired . | . . . . Time . | . . . . Parts Recycled . | . . . . Recycled Matter . | . . . . Retrieved Matter . | . . . . Retrieved Components . | . . . . Parts Scanalyzed . | . . . . Part Schematics Acquired . | . . . . Parts Damaged . | . . . . Bothacking | -11 -10 -10 -9 ------------ Run | Yrd Mat Min Mat Used RIF Installer . | . . . . Robots Hacked . | . . . . Non-combat . | . . . . Combat . | . . . . Robot Hacks Applied . | . . . . Relay Couplers Released . | . . . . Fabnet Peak Effective % . | . . . . Robots Rewired . | . . . . Allies Hacked . | . . . . Hacks Repelled . | . . . . Allies | -11 -10 -10 -9 -------- Run | Yrd Mat Min Mat Total Allies . | . . . . Largest Group . | . . . . Highest-Rated Group . | . . . . Highest-Rated Ally . | . . . . Total Orders . | . . . . Ally Attacks . | . . . . Total Damage . | . . . . Kills . | . . . . Allies Corrupted . | . . . . Allies Melted . | . . . . Intel | -11 -10 -10 -9 ------- Run | Yrd Mat Min Mat Robot Analysis Total . | . . . . Derelict Logs Recovered 1 | . . 1 . Drone Launches . | . . . . Drone Recoveries . | . . . . Exploration | -11 -10 -10 -9 ------------- Run | Yrd Mat Min Mat Turns Passed 1267 | 47 655 409 156 Spaces Moved 987 | 38 503 180 266 Core 137 | 12 . 5 120 Treads 135 | . 58 77 . Legs 66 | . . 66 . Wheels 503 | 26 445 32 . Hover . | . . . . Flight 146 | . . . 146 Fastest Speed 40 | 50 95 95 40 Average Speed 98 | 77 102 158 54 Slowest Speed 200 | 100 160 200 200 Overloaded Moves . | . . . . Propulsion Burnouts . | . . . . Robots Hopped 3 | . . . 3 Cave-ins Triggered . | . . . . Exploration Rate (%) 28 | 3 58 40 12 Regions Visited 3 Branch Regions 1 Pre-discovered Areas . | . . . . Known Exits Taken 1 | . . 1 . Unknown Exits Taken 2 | 1 1 . . Scrap Searched 1 | . . 1 . Spaces Dug . | . . . . Terrain Destroyed 5 | . 5 . . Melee . | . . . . Projectile . | . . . . AOE 5 | . 5 . . Terrain Rammed . | . . . . Walls Destroyed . | . . . . Machines Disabled . | . . . . Actions | -11 -10 -10 -9 --------- Run | Yrd Mat Min Mat Total 1152 | 55 576 244 277 Wait 46 | 4 21 21 . Move 978 | 37 502 179 260 Hop 3 | . . . 3 Pick Up 21 | 8 10 2 1 Fast Attach 1 | . 1 . . Attach 16 | 6 2 5 3 Detach 3 | . 1 . 2 Swap 2 | . 2 . . Drop 6 | . 3 1 2 Fire 70 | . 34 36 . Melee . | . . . . Ram 6 | . . . 6 Kick . | . . . . Crush . | . . . . Escape Stasis . | . . . . Rewire . | . . . . Trap . | . . . . Miscellaneous . | . . . . Route ------- -11/Scrapyard -10/Materials (discovered 3 exits: *Mat x2 / [*Min]) -10/Mines -9/Materials (discovered 1 exit: Mat) History --------- Turn | Location | Event 20 | -11/Scrapyard | Discovered new exit (range 16) 48 | -11/Scrapyard | Entered Materials 293 | -10/Materials | Discovered new exit (range 12) 311 | -10/Materials | Build established: Mutant 533 | -10/Materials | Discovered new exit (range 15) 681 | -10/Materials | Discovered new exit (range 14) 703 | -10/Materials | Entered Mines 742 | -10/Mines | Learned location of 1 exit from Materials 762 | -10/Mines | Met a Derelict bent on vengeance 932 | -10/Mines | Core integrity fell below 50% 983 | -10/Mines | Lost 3 parts (1p1n1w) 1090 | -10/Mines | Discovered new exit (range 7) 1110 | -10/Mines | Identified exit to Materials 1112 | -10/Mines | Entered Materials 1112 | -9/Materials | Evolved 2 slots: Propulsion x2 1113 | -9/Materials | Identified exit to Materials 1140 | -9/Materials | Lost 3 parts (2n1w) 1239 | -9/Materials | Core integrity fell below 50% 1265 | -9/Materials | Core integrity fell below 20% 1268 | -9/Materials | Destroyed by G-34 Mercenary with Small Laser Last Messages --------------- 01109_ Aluminum Leg destroyed. 01110_ EXIT=IDENTIFIED: MATERIALS PARAMETERS=PROPULSION+2 LOCATION=MATERIALS GOAL=ESCAPE Loading 1 Materials exit... 01132_ Dropped Authchip [Storage]. 01133_ Dropped Sml. Storage Unit. 01141_ O-16 Technician: "IFF HANDSHAKE FAILED. SECURING TERMINAL." 01144_ ALERT: Hostiles spotted, dispatching reinforcements to Terminal M006. 01151_ R-06 Scavenger collects Sml. Storage Unit. 01162_ K-01 Serf collects debris. 01194_ Acquired Sml. Battery. 01206_ Authchip [R/Combat] destroyed. 01206_ Flight Unit destroyed. 01259_ Slammed into G-34 Mercenary. 01259_ Signal Interpreter destroyed. 01259_ System corrupted by crushing effect (+3). 01260_ Slammed into G-34 Mercenary. Map ----- +----------------------------------------------------+ | # """"" # # #??????????????? | | # """"" # # #??????????????? | | # """ # # #??????????????? | | # # # """ """ #??????????????? | | # # # """ """ #??????????????? | | # " # """ """ #??????????????? | | # # ###########??????????????? | | ########## #????????????????????????? | | ?????????# #????????????????????????? | | ?????????# #????????????????????????? | | ?????????# #????????????????????????? | | ?????????# #????????????????????????? | | ?????????# #????????????????????????? | | ?????????# #????????????????????????? | | ?????????# ####????????+###?????????? | | ?????????# ####### #?????????? | | ?????????# #?????????? | | ?????????# +?????????? | | ?????????# #?????????? | | ?????????#| ####### #?????????? | | ?????????## ##???????? ##?????????? | | ??????????# ####?####???#??????????? | | ??????????# # ? #??????????????? | | ?##########o # """ #??????????????? | | ?# # # """"" #??????????????? | | ?# """ # @# """"" #??????????????? | | ?# """ # # """"" #??????????????? | | ?# """ # # """ #??????????????? | | ?# # # #??????????????? | | ?# " """ #Y # #??????????????? | | ?# T """ g + #??????????????? | | ?# " """ #g # #??????????????? | | ?# # # #??????????????? | | ?########## #+#######??????????????? | | ??????# #??????????????????????? | | ??????# #??????????????????????? | | ??????# #??????????????????????? | | ??????####+####??????????????????????? | | ???????#! ] #??????????????????????? | | ???????# #??????????????????????? | | ???????# """" #??????????????????????? | | ???????# """" #??????????????????????? | | ???????# """" #??????????????????????? | | ???????# #??????????????????????? | | ???????########??????????????????????? | | ?????????????????????????????????????? | | ?????????????????????????????????????? | | ?????????????????????????????????????? | | ?????????????????????????????????????? | | ?????????????????????????????????????? | +----------------------------------------------------+ Best States ------------- Heat Dissipation 28 Energy Generation 10 Energy Capacity 250 Matter Stores 300 Matter Capacity 300 Sight Range 16 Terrain Scan Density 10 Evasion (%) 62 Recoil Reduction 1 Authchip Count 3 Item Schematics ----------------- None Robot Schematics ------------------ None Fabricated ------------ Nothing Alien Tech Used ----------------- None Achievements -------------- None Challenges ------------ None Game ------ Seed ComponentFusionPenetrator Manual? 0 Play Time 00:48:35 Cumulative 67.5 hours Start 2024.12.21 @ 11:36:27 End 2024.12.30 @ 16:39:26 Sessions 3 Manual Loads 0 Difficulty Rogue Special Mode None Game No. 31 Rogue 31 Adventurer 0 Explorer 0 Win Type - Total 0 Types 0/0/0/0/0/0/0/0/0 Lore% 22 Gallery% 35 Achievement% 33 Wizard Run 0 Options --------- Layout 0 ASCII 0 Keyboard 0 Movement Mouse Keybinds 0 Fullscreen 2 Font 18/SmallcapsGlow Map View 76x50 Zoom Use 0% Tactical HUD 1 Map Filters NONE Filters NONE Steam 1 RUN: e7b2a07f-9175-4d27-af74-f9b6b0b5762c